bitfinex/quotes_SOLUSD_20251106
["timestamp","ask_amount","ask_price","bid_price","bid_amount"]
[1762392855695,10.15994306,160.42,160.38,6.23513669]
[1762392856392,8.01,160.42,160.38,6.23513669]
[1762392856811,10.15994306,160.42,160.38,6.23513669]
[1762392857718,10.15994306,160.42,160.38,6.93513669]
[1762392858291,0.71,160.41,160.37,3.3624689]
[1762392858602,11.3724689,160.42,160.37,4.0624689]
[1762392858805,8.01,160.42,160.38,4.0624689]
[1762392859206,7.3,160.42,160.37,3.3624689]
[1762392859526,0.71,160.48,160.4,9.78882769]
[1762392859819,11.3724689,160.47,160.41,3.3624689]
[1762392860209,10.6624689,160.47,160.41,4.0624689]
[1762392860407,0.71,160.46,160.42,6.2336367]
[1762392861329,0.71,160.46,160.42,6.9336367]
[1762392862117,4.0724689,160.46,160.42,6.9336367]
[1762392862521,0.71,160.46,160.42,6.9336367]
[1762392862934,0.71,160.46,160.42,10.2961056]
[1762392863103,10.6624689,160.47,160.43,0.66]
[1762392863308,11.3624689,160.47,160.43,0.66]
[1762392863607,11.3624689,160.47,160.42,25.18019735]
[1762392863809,0.7,160.46,160.42,25.84019735]
[1762392865109,0.7,160.46,160.42,22.47772845]
[1762392865310,0.7,160.46,160.42,25.84019735]
[1762392865530,10.6624689,160.47,160.42,25.84019735]
[1762392865731,0.7,160.46,160.42,25.84019735]
[1762392866034,0.7,160.46,160.42,22.47772845]
[1762392866411,0.7,160.46,160.42,25.84019735]
[1762392867731,10.6624689,160.47,160.44,6.23285963]
[1762392868030,11.3624689,160.47,160.44,6.23285963]
[1762392868230,8.0,160.47,160.44,6.23285963]
[1762392868426,8.0,160.47,160.43,0.66]
[1762392868427,11.3624689,160.47,160.43,6.89313625]
[1762392869126,7.3,160.47,160.44,4.0224689]
[1762392869335,7.3,160.47,160.45,4.0224689]
[1762392869508,7.3,160.47,160.46,4.0224689]
[1762392869712,7.3,160.47,160.46,10.25455166]
[1762392870347,3.36246891,160.53,160.46,25.83475856]
[1762392870517,7.3,160.5,160.48,3.3624689]
[1762392870921,7.3,160.5,160.48,4.0224689]
[1762392871635,7.3,160.5,160.49,0.66]
[1762392871815,7.3,160.5,160.49,6.89091781]
[1762392872234,8.0,160.5,160.47,6.23157061]
[1762392872733,7.3,160.5,160.47,6.89157061]
[1762392877253,7.3,160.5,160.47,25.8332755]
[1762392878592,7.3,160.5,160.47,6.92157061]
[1762392879131,7.3,160.5,160.43,21.81612431]
[1762392879332,3.3624689,160.48,160.44,0.69]
[1762392879845,0.72,160.48,160.44,4.0524689]
[1762392880268,0.72,160.48,160.45,6.23247117]
[1762392880854,0.72,160.48,160.44,6.23273312]
[1762392881054,3.3624689,160.49,160.45,0.69]
[1762392881259,4.0824689,160.49,160.45,0.69]
[1762392883147,0.72,160.48,160.45,6.2321764]
[1762392884444,4.0824689,160.48,160.45,6.2321764]
[1762392884645,0.72,160.48,160.44,6.23270646]
[1762392885047,0.72,160.48,160.44,6.92270646]
[1762392885963,27.892,160.5,160.45,4.0524689]
[1762392886141,31.2544689,160.5,160.45,4.0524689]
[1762392886342,7.3,160.5,160.48,3.3624689]
[1762392886753,7.3,160.5,160.49,0.69]
[1762392887481,7.3,160.5,160.49,4.0524689]
[1762392887974,7.3,160.5,160.49,10.28338671]
[1762392890670,7.3,160.5,160.49,6.23091781]
[1762392890864,7.3,160.5,160.49,6.92091781]
[1762392891659,7.3,160.5,160.49,10.28338671]
[1762392894075,7.3,160.5,160.49,6.92091781]
[1762392895647,7.3,160.5,160.49,6.23091781]
[1762392897055,7.3,160.5,160.49,6.91091781]
[1762392897471,7.3,160.5,160.49,6.23091781]
[1762392897669,7.96,160.5,160.49,6.23091781]
[1762392897967,7.3,160.5,160.49,6.23091781]
[1762392898163,11.3224689,160.5,160.47,32.8]
[1762392898381,4.0224689,160.49,160.47,32.8]
[1762392898582,11.3224689,160.5,160.47,39.03163829]
[1762392899571,7.96,160.5,160.47,39.03163829]
[1762392900493,7.96,160.5,160.47,32.8]
[1762392900689,7.96,160.5,160.47,39.03163478]
[1762392900899,7.96,160.5,160.47,6.23163478]
[1762392901571,7.96,160.5,160.47,6.91163478]
[1762392901772,7.96,160.5,160.47,6.23163478]
[1762392902069,11.3224689,160.5,160.47,6.23163478]
[1762392902498,11.3224689,160.5,160.47,6.91163478]
[1762392902993,1e-08,160.53,160.49,3.3624689]
[1762392903176,7.28000001,160.53,160.52,3.3624689]
[1762392903580,7.28000001,160.53,160.52,9.5922222]
[1762392903889,7.28000001,160.53,160.51,6.91007075]
[1762392904069,7.28000001,160.53,160.51,6.23007075]
[1762392904270,7.28000001,160.53,160.51,6.91007075]
[1762392906401,7.28000001,160.53,160.52,3.3624689]
[1762392906601,1e-08,160.53,160.52,13.83129659]
[1762392907724,1e-08,160.53,160.52,20.06104989]
[1762392909619,0.2,160.55,160.52,20.06104989]
[1762392909620,0.2,160.55,160.54,30.38082769]
[1762392909781,1e-08,160.59,160.58,9.78882769]
[1762392909982,0.1,160.67,160.58,9.78882769]
[1762392909983,0.1,160.67,160.62,9.78882769]
[1762392910181,0.66,160.66,160.63,20.592]
[1762392910413,4.0224689,160.66,160.59,0.68]
[1762392910612,3.3624689,160.64,160.59,0.68]
[1762392910915,10.6424689,160.64,160.59,3.3624689]
[1762392911090,11.3024689,160.64,160.59,4.0424689]
[1762392911904,11.3024689,160.64,160.6,6.90665006]
[1762392912904,7.94,160.64,160.6,10.26911896]
[1762392913406,7.94,160.64,160.6,6.90665006]
[1762392913791,7.94,160.64,160.6,6.22665006]
[1762392913991,7.94,160.64,160.59,19.60922591]
[1762392913992,3.3624689,160.61,160.53,0.68]
[1762392914304,3.3624689,160.61,160.55,3.3624689]
[1762392914506,4.0224689,160.61,160.55,4.0424689]
[1762392914814,3.3624689,160.6,160.55,4.0424689]
[1762392915120,7.28,160.59,160.55,4.0424689]
[1762392915490,7.28,160.59,160.56,0.68]
[1762392916099,7.28,160.59,160.57,6.22781341]
[1762392916597,7.28,160.59,160.57,10.27028231]
[1762392917001,7.28,160.59,160.57,6.22781341]
[1762392917204,7.28,160.59,160.55,3.3624689]
[1762392917407,7.28,160.59,160.55,4.0424689]
[1762392918094,7.28,160.59,160.56,3.3624689]
[1762392918293,7.28,160.59,160.57,6.22781341]
[1762392918498,7.28,160.59,160.55,4.0424689]
[1762392918703,7.94,160.59,160.55,4.0424689]
[1762392919187,7.28,160.59,160.55,6.22844674]
[1762392919509,7.28,160.59,160.58,3.3624689]
[1762392919692,7.28,160.62,160.58,3.3624689]
[1762392919907,7.28,160.62,160.59,4.0424689]
[1762392920316,7.28,160.62,160.6,6.22665006]
[1762392922722,0.65,160.61,160.58,6.22713213]
[1762392923724,7.28,160.62,160.58,9.09324411]
[1762392923922,7.93,160.62,160.58,6.94713213]
[1762392924494,7.93,160.62,160.58,22.51569608]
[1762392924818,0.65,160.61,160.58,21.79569608]
[1762392926923,0.65,160.61,160.58,15.56856395]
[1762392927134,2.79611198,160.61,160.57,6.22781341]
[1762392927337,2.79611198,160.61,160.57,6.94781341]
[1762392927838,0.65,160.61,160.57,6.94781341]
[1762392930205,20.592,160.57,160.5,2.14611198]
[1762392930405,20.592,160.57,160.5,0.72]
[1762392930406,2.14611198,160.55,160.5,0.72]
[1762392930909,2.79611198,160.55,160.5,0.72]
[1762392931427,10.07611198,160.56,160.5,2.86611198]
[1762392931825,10.07611198,160.56,160.51,0.72]
[1762392932003,2.14611198,160.55,160.51,0.72]
[1762392932207,2.14611198,160.55,160.52,6.2297533]
[1762392932626,2.14611198,160.55,160.52,6.9497533]
[1762392932815,2.79611198,160.55,160.52,6.2297533]
[1762392933218,2.14611198,160.55,160.52,6.9497533]
[1762392933932,2.79611198,160.55,160.52,6.2297533]
[1762392934110,2.79611198,160.55,160.51,15.57475738]
[1762392934309,0.65,160.55,160.51,15.57475738]
[1762392934511,2.14611198,160.55,160.52,0.72]
[1762392935233,2.14611198,160.55,160.53,6.22936522]
[1762392935436,2.80611198,160.55,160.53,6.22936522]
[1762392936032,2.14611198,160.55,160.53,6.22936522]
[1762392936431,2.14611198,160.55,160.52,6.2297533]
[1762392936636,2.14611198,160.55,160.52,6.8897533]
[1762392938743,2.14611198,160.53,160.48,0.66]
[1762392938945,2.14611198,160.51,160.48,0.66]
[1762392939135,7.28,160.52,160.49,6.23091781]
[1762392939649,7.28,160.52,160.49,6.89091781]
[1762392940433,7.28,160.52,160.49,22.46821234]
[1762392942433,9.42611198,160.52,160.49,22.46821234]
[1762392943934,7.28,160.52,160.49,22.46821234]
[1762392944140,9.42611198,160.52,160.49,22.46821234]
[1762392945131,7.28,160.52,160.49,22.46821234]
[1762392945839,0.66,160.51,160.49,6.23091781]
[1762392946160,7.28,160.52,160.49,6.23091781]
[1762392946354,0.66,160.51,160.49,6.23091781]
[1762392946850,7.28,160.52,160.48,6.23130608]
[1762392947055,7.94,160.52,160.48,6.89130608]
[1762392949438,7.94,160.52,160.48,22.46957128]
[1762392951153,0.66,160.58,160.51,2.14611198]
[1762392951445,7.28,160.57,160.52,20.592]
[1762392951657,7.28,160.57,160.56,2.14611198]
[1762392951963,7.28,160.57,160.54,2.14611198]
[1762392952368,7.28,160.57,160.54,2.86611198]
[1762392952742,7.28,160.57,160.55,6.22858922]
[1762392953063,7.28,160.57,160.55,9.0947012]
[1762392953244,7.28,160.57,160.56,2.86611198]
[1762392953447,7.97,160.57,160.55,6.22858922]
[1762392953646,10.11611198,160.57,160.54,6.22883354]
[1762392954863,7.97,160.57,160.54,6.22883354]
[1762392955168,7.28,160.57,160.55,0.72]
[1762392956340,7.28,160.57,160.56,6.22820129]
[1762392957250,7.28,160.57,160.55,6.22843733]
[1762392958469,7.28,160.57,160.55,0.72]
[1762392959674,7.28,160.57,160.56,6.22820129]
[1762392961078,0.61973227,160.64,160.56,24.6648165]
[1762392961264,2.14611198,160.66,160.59,20.592]
[1762392961448,2.14611198,160.64,160.59,22.73811198]
[1762392961649,9.42611198,160.65,160.61,21.7919183]
[1762392961873,10.11611198,160.65,160.61,21.7919183]
[1762392962061,10.11611198,160.65,160.61,22.5119183]
[1762392962584,7.28,160.65,160.61,23.93803028]
[1762392962776,0.1,160.67,160.64,2.14611198]
[1762392963079,7.28,160.66,160.64,2.14611198]
[1762392963258,7.28,160.66,160.64,2.86611198]
[1762392963651,7.28,160.66,160.65,6.9447121]
[1762392964279,7.28,160.66,160.65,6.2247121]
[1762392965189,0.1,160.67,160.65,9.09082408]
[1762392965386,0.1,160.67,160.66,2.86611198]
[1762392965674,0.1,160.67,160.66,9.09043664]
[1762392974673,0.1,160.67,160.66,8.37043664]
[1762392974973,0.1,160.67,160.66,9.09043664]
[1762392977079,0.1,160.67,160.66,41.89043664]
[1762392977785,0.1,160.69,160.66,57.45124829]
[1762392977989,0.1,160.69,160.68,22.73811198]
[1762392978297,1e-08,160.7,160.68,55.53811198]
[1762392978461,1e-08,160.7,160.69,2.86611198]
[1762392979181,0.1,160.76,160.7,10.50882769]
[1762392979379,1e-08,160.79,160.75,2.14611198]
[1762392979570,1e-08,160.79,160.78,32.52693967]
[1762392979777,1e-08,160.79,160.78,28.95779104]
[1762392979987,1e-08,160.79,160.78,39.46661873]
[1762392980614,1e-08,160.79,160.78,6.93967906]
[1762392980815,1e-08,160.79,160.78,29.67779104]
[1762392981804,1e-08,160.79,160.78,39.46661873]
[1762392982305,1e-08,160.79,160.78,40.66393914]
[1762392982489,1e-08,160.79,160.78,47.92393914]
[1762392982693,1e-08,160.79,160.78,51.26737153]
[1762392983190,0.2,160.83,160.78,98.53693241]
[1762392983513,0.2,160.83,160.82,3.34343239]
[1762392983724,0.2,160.83,160.82,4.06343239]
[1762392983891,0.2,160.83,160.82,10.28156446]
[1762392985207,0.2,160.83,160.82,20.07039215]
[1762392986299,0.2,160.83,160.82,40.66239215]
[1762392987523,0.2,160.86,160.82,40.66239215]
[1762392987524,1e-08,160.86,160.85,30.38082769]
[1762392987698,0.71,160.94,160.86,9.78882769]
[1762392987901,1e-08,160.9,160.89,3.34343239]
[1762392988207,2.89,160.98,160.92,20.592]
[1762392988414,2.89,160.98,160.96,3.34343239]
[1762392988415,2.18,160.98,160.96,3.34343239]
[1762392988599,0.71,160.97,160.96,3.34343239]
[1762392989210,2.18,160.98,160.95,3.34343239]
[1762392989404,2.18,160.98,160.96,3.34343239]
[1762392989405,0.71,160.97,160.96,3.34343239]
[1762392990287,0.71,160.97,160.96,14.02684862]
[1762392990491,2.18,160.98,160.96,14.02684862]
[1762392990727,26.60882769,161.03,160.97,8.53412497]
[1762392990728,0.71,161.03,160.97,8.53412497]
[1762392990918,0.71,161.03,160.99,7.81412497]
[1762392991089,0.71,161.03,160.99,0.72]
[1762392991537,7.26,161.06,160.99,0.72]
[1762392991695,0.71,161.03,161.01,7.81412497]
[1762392992220,0.71,161.03,161.01,14.02459637]
[1762392992427,28.40612497,161.07,161.02,7.81412497]
[1762392992428,0.71,161.07,161.02,7.81412497]
[1762392992603,0.71,161.07,161.04,7.81412497]
[1762392993106,0.71,161.07,161.01,14.02459637]
[1762392993288,0.71,161.07,161.02,7.81412497]
[1762392993488,8.52412497,161.07,161.02,7.81412497]
[1762392993728,7.81412497,161.04,160.99,7.81412497]
[1762392993893,7.81412497,161.04,160.98,7.81412497]
[1762392994220,0.71,161.03,160.99,7.81412497]
[1762392994422,0.71,161.03,161.0,6.21118012]
[1762392994806,0.71,161.03,161.0,14.02530509]
[1762392995411,0.71,161.03,161.01,7.81412497]
[1762392995922,0.67,161.05,161.01,7.81412497]
[1762392996538,0.67,161.05,161.02,7.81412497]
[1762392996718,0.67,161.08,161.04,7.81412497]
[1762392996920,0.67,161.08,161.05,7.81412497]
[1762392997228,0.67,161.08,161.04,7.81412497]
[1762392997634,0.67,161.08,161.05,7.81412497]
[1762392998220,0.67,161.08,161.04,7.81412497]
[1762392998527,0.67,161.08,161.05,6.20925178]
[1762392998937,0.67,161.08,161.05,14.02337675]
[1762392999610,0.67,161.08,161.05,29.54650621]
[1762392999809,7.24,161.12,161.05,29.54650621]
[1762393000040,0.67,161.11,161.08,7.81412497]
[1762393000218,0.67,161.11,161.07,7.81412497]
[1762393000419,0.67,161.11,161.08,14.02222032]
[1762393000836,7.24,161.12,161.1,7.81412497]
[1762393001112,0.67,161.11,161.08,7.81412497]
[1762393001812,7.24,161.12,161.09,7.81412497]
[1762393002012,7.91,161.12,161.09,7.81412497]
[1762393002208,7.24,161.12,161.08,7.81412497]
[1762393002428,0.67,161.11,161.07,14.02254584]
[1762393006227,0.67,161.11,161.07,6.20842087]
[1762393006432,0.67,161.11,161.07,14.02254584]
[1762393007738,20.592,161.13,161.09,7.81412497]
[1762393007946,7.24,161.12,161.08,0.7]
[1762393008119,7.24,161.12,161.09,7.81412497]
[1762393008718,7.24,161.12,161.1,7.81412497]
[1762393009240,0.67,161.14,161.1,7.81412497]
[1762393009543,0.67,161.14,161.11,6.20693935]
[1762393009738,0.67,161.14,161.04,38.86209224]
[1762393009739,8.48412497,161.14,161.08,0.7]
[1762393009943,8.48412497,161.14,161.09,7.81412497]
[1762393010149,0.67,161.13,161.09,7.81412497]
[1762393010455,0.67,161.13,161.09,8.51412497]
[1762393011353,7.81412497,161.12,161.07,7.81412497]
[1762393011554,0.67,161.13,161.05,6.20925178]
[1762393011849,7.81412497,161.08,161.04,6.9095149]
[1762393012554,8.47412497,161.09,161.04,6.9095149]
[1762393012758,0.66,161.09,161.04,14.69363987]
[1762393013053,8.47412497,161.09,161.04,14.69363987]
[1762393013557,7.81412497,161.09,161.04,14.69363987]
[1762393013856,0.66,161.08,161.04,14.6936637]
[1762393014051,8.47412497,161.09,161.04,14.6936637]
[1762393014946,8.47412497,161.08,161.04,0.67]
[1762393015146,7.81412497,161.05,161.0,24.01198653]
[1762393015342,0.66,161.04,161.0,24.01198653]
[1762393015539,0.66,161.04,160.96,9.78882769]
[1762393015540,7.24,161.07,161.03,7.81412497]
[1762393015732,7.24,161.07,161.05,7.81412497]
[1762393015934,7.24,161.07,161.06,7.81412497]
[1762393016129,7.24,161.07,161.05,0.67]
[1762393016548,7.24,161.07,161.05,8.48412497]
[1762393016865,7.24,161.07,161.05,0.67]
[1762393017360,7.24,161.07,161.05,8.48412497]
[1762393018062,7.24,161.07,161.06,14.69299123]
[1762393018256,7.24,161.07,161.06,14.02299123]
[1762393018563,7.24,161.07,161.05,14.69331881]
[1762393018938,7.24,161.07,161.05,14.02331881]
[1762393019139,7.24,161.07,161.05,14.69331881]
[1762393019963,7.24,161.07,161.06,7.81412497]
[1762393020166,7.24,161.07,161.05,14.69331881]
[1762393020559,7.24,161.07,161.06,7.81412497]
[1762393021063,7.81412497,161.11,161.06,8.48412497]
[1762393021064,0.66,161.11,161.06,8.48412497]
[1762393021292,15.71412497,161.1,161.05,6.20919384]
[1762393021447,15.05412497,161.09,161.04,14.02363109]
[1762393021770,20.592,161.02,160.85,37.3017348]
[1762393021942,7.81412497,160.95,160.9,7.81412497]
[1762393022148,15.05412497,160.94,160.88,20.592]
[1762393022353,7.24,160.93,160.89,0.67]
[1762393022552,0.66,160.98,160.92,7.81412497]
[1762393022873,7.81412497,160.95,160.89,0.67]
[1762393023042,7.24,160.94,160.9,8.48412497]
[1762393023460,7.24,160.94,160.91,0.67]
[1762393023661,7.24,160.94,160.91,8.48412497]
[1762393024365,7.24,160.94,160.92,6.21426795]
[1762393024955,7.24,160.94,160.92,6.88426795]
[1762393025165,7.24,160.94,160.92,14.69839292]
[1762393025372,0.66,160.97,160.92,30.23406281]
[1762393025563,7.24,160.96,160.92,30.23406281]
[1762393025767,7.24,160.96,160.92,14.02839292]
[1762393026066,7.24,160.96,160.92,6.21426795]
[1762393026067,7.9,160.96,160.92,6.21426795]
[1762393026278,8.47412497,160.95,160.9,21.75246423]
[1762393026474,7.81412497,160.92,160.9,6.21504039]
[1762393026665,15.05412497,160.92,160.9,6.21504039]
[1762393027065,0.66,160.91,160.89,6.21531554]
[1762393027265,0.66,160.91,160.86,15.54135264]
[1762393027266,8.47412497,160.91,160.86,15.54135264]
[1762393027582,7.24,160.92,160.87,30.24082291]
[1762393027771,7.9,160.92,160.87,22.42669794]
[1762393027971,7.9,160.92,160.87,30.24082291]
[1762393028179,15.71412497,160.92,160.87,30.24082291]
[1762393028380,0.66,160.91,160.87,30.24082291]
[1762393028561,0.66,160.95,160.88,0.67]
[1762393028770,0.66,160.95,160.91,7.81412497]
[1762393028771,7.26,160.94,160.91,7.81412497]
[1762393029275,0.66,160.93,160.89,8.48412497]
[1762393029476,0.66,160.93,160.87,14.03032438]
[1762393029777,0.66,160.93,160.83,20.592]
[1762393030084,7.81412497,160.88,160.84,0.67]
[1762393030268,7.26,160.87,160.85,6.21697233]
[1762393030475,7.81412497,160.93,160.86,7.81412497]
[1762393030678,7.26,160.92,160.88,7.81412497]
[1762393030868,15.73412497,160.92,160.87,7.81412497]
[1762393031381,7.81412497,160.9,160.85,30.24352813]
[1762393031574,7.81412497,160.9,160.85,22.42940316]
[1762393031781,8.47412497,160.9,160.85,22.42940316]
[1762393032099,7.81412497,160.87,160.84,6.21735054]
[1762393032266,7.26,160.86,160.82,29.57699861]
[1762393032463,7.26,160.86,160.83,8.48412497]
[1762393032863,7.26,160.86,160.84,0.67]
[1762393033486,0.66,160.92,160.85,7.81412497]
[1762393033687,7.26,160.91,160.86,7.81412497]
[1762393034195,7.26,160.91,160.87,0.67]
[1762393034379,7.26,160.91,160.88,21.75534559]
[1762393036066,7.26,160.91,160.89,0.67]
[1762393036268,7.26,160.91,160.9,14.02916536]
[1762393036485,0.66,161.0,160.9,29.56676635]
[1762393036663,6.20971639,161.04,160.9,29.56676635]
[1762393036664,7.26,160.99,160.91,21.262]
[1762393036867,15.07412497,160.99,160.94,7.81412497]
[1762393037388,7.26,160.99,160.95,0.67]
[1762393037967,7.26,160.99,160.95,8.48412497]
[1762393038481,7.81412497,160.98,160.93,0.67]
[1762393038681,7.81412497,160.98,160.89,17.04882769]
[1762393038682,7.81412497,160.95,160.91,6.21465415]
[1762393038878,15.07412497,160.94,160.91,6.21465415]
[1762393039079,7.26,160.93,160.91,6.88465415]
[1762393039776,7.26,160.93,160.91,6.21465415]
[1762393040173,7.26,160.93,160.9,21.75240171]
[1762393040376,7.26,160.93,160.9,22.42240171]
[1762393040573,7.26,160.93,160.9,21.75240171]
[1762393041075,7.26,160.93,160.9,22.42240171]
[1762393041390,15.73412497,160.93,160.9,6.21504039]
[1762393041571,7.26,160.93,160.9,6.88504039]
[1762393041774,7.26,160.93,160.9,22.42264138]
[1762393042077,15.07412497,160.93,160.9,6.21504039]
[1762393042270,15.78412497,160.93,160.9,6.21504039]
[1762393042470,7.97,160.93,160.89,6.21542668]
[1762393042686,7.26,160.93,160.89,6.93542668]
[1762393042879,7.97,160.93,160.89,6.93542668]
[1762393043084,0.71,160.92,160.89,6.21542668]
[1762393043805,5.56913728,160.91,160.89,6.21542668]
[1762393044199,5.56913728,160.9,160.84,0.72]
[1762393044493,5.56913728,160.88,160.83,21.76181088]
[1762393044677,5.56913728,160.88,160.83,22.48181088]
[1762393044885,5.56913728,160.88,160.84,0.72]
[1762393045392,12.82913728,160.89,160.84,0.72]
[1762393046173,13.53913728,160.89,160.84,0.72]
[1762393046494,5.56913728,160.87,160.85,6.21697233]
[1762393046696,12.82913728,160.86,160.83,6.21741557]
[1762393047393,13.53913728,160.86,160.83,6.21741557]
[1762393047570,12.82913728,160.86,160.83,6.21741557]
[1762393047773,7.26,160.86,160.83,6.93741557]
[1762393047976,166.69999999,160.98,160.85,5.56913728]
[1762393048169,0.71,160.93,160.85,5.56913728]
[1762393048396,5.56913728,160.95,160.89,5.56913728]
[1762393048578,5.56913728,160.92,160.87,21.75669794]
[1762393048898,7.28,160.91,160.87,28.04583522]
[1762393049102,7.28,160.91,160.88,0.72]
[1762393050097,7.28,160.91,160.89,6.21542668]
[1762393050298,7.28,160.91,160.9,5.56913728]
[1762393050504,7.28,160.91,160.9,6.28913728]
[1762393051503,7.28,160.94,160.9,6.28913728]
[1762393051705,5.56913728,160.98,160.93,5.56913728]
[1762393051902,7.28,160.97,160.95,5.56913728]
[1762393052078,6.27913728,161.0,160.95,5.56913728]
[1762393052400,7.28,160.99,160.96,6.21272365]
[1762393052575,12.84913728,160.99,160.96,6.21272365]
[1762393052778,13.55913728,160.99,160.96,6.21272365]
[1762393053193,13.55913728,160.99,160.95,0.72]
[1762393053392,12.84913728,160.99,160.95,6.93286935]
[1762393054200,7.28,160.99,160.96,5.56913728]
[1762393054385,20.592,161.0,160.96,5.56913728]
[1762393054386,5.56913728,161.04,160.98,5.56913728]
[1762393054591,7.28,161.02,160.99,5.56913728]
[1762393054788,7.28,161.01,160.97,5.56913728]
[1762393054984,7.28,161.01,160.98,6.28913728]
[1762393055285,7.28,161.01,161.0,5.56913728]
[1762393055488,7.28,161.01,160.99,6.28913728]
[1762393056303,7.28,161.01,161.0,6.21118012]
[1762393056701,7.28,161.01,160.99,6.28913728]
[1762393056702,7.28,161.01,160.99,12.50059788]
[1762393056997,7.28,161.01,160.99,6.2114606]
[1762393057207,7.28,161.01,160.99,6.8714606]
[1762393057707,7.28,161.01,160.99,12.44059788]
[1762393057907,7.94,161.01,160.96,12.44178175]
[1762393058101,7.94,161.01,160.96,11.78178175]
[1762393058294,0.66,161.0,160.96,11.78178175]
[1762393058818,12.84913728,161.01,160.96,12.44178175]
[1762393059003,13.50913728,161.01,160.96,12.44178175]
[1762393060200,13.50913728,161.01,160.96,27.97359089]
[1762393060409,13.50913728,161.01,160.96,27.31359089]
[1762393060588,7.28,161.01,160.97,6.22913728]
[1762393060788,7.94,161.01,160.97,6.22913728]
[1762393061107,7.28,161.01,160.97,6.22913728]
[1762393062009,7.28,161.01,160.96,6.21264447]
[1762393062010,6.22913728,161.0,160.96,6.21264447]
[1762393062392,0.66,161.0,160.96,11.78178175]
[1762393063107,0.66,161.0,160.96,6.87264447]
[1762393063722,5.56913728,160.99,160.93,0.66]
[1762393063893,5.56913728,160.97,160.91,0.66]
[1762393064086,6.87127425,161.0,160.91,6.22913728]
[1762393064087,12.84913728,160.96,160.91,6.22913728]
[1762393064408,7.28,160.95,160.92,6.21426795]
[1762393065499,7.28,160.95,160.89,0.66]
[1762393065500,0.66,160.94,160.89,0.66]
[1762393065691,7.28,160.95,160.91,5.56913728]
[1762393066083,7.28,160.95,160.92,0.66]
[1762393066388,12.84913728,160.95,160.91,6.87465415]
[1762393066710,12.84913728,160.95,160.92,0.66]
[1762393067091,6.22913728,160.94,160.91,6.21465415]
[1762393067401,0.66,160.94,160.91,6.21465415]
[1762393067794,12.84913728,160.95,160.91,6.21465415]
[1762393067795,12.84913728,160.95,160.91,6.87465415]
[1762393068195,12.84913728,160.95,160.91,22.41128953]
[1762393068889,7.94,160.95,160.91,6.87465415]
[1762393069090,13.50913728,160.95,160.91,6.87465415]
[1762393069916,5.56913728,160.94,160.91,6.21465415]
[1762393070613,5.56913728,160.94,160.9,6.21504039]
[1762393070818,5.56913728,160.94,160.9,6.87504039]
[1762393071013,5.56913728,160.94,160.9,6.21504039]
[1762393071204,5.56913728,160.94,160.9,6.87504039]
[1762393071617,5.56913728,160.94,160.91,0.66]
[1762393072695,6.22913728,160.93,160.89,6.21534023]
[1762393072896,5.56913728,160.91,160.89,6.21534023]
[1762393073096,12.82913728,160.91,160.89,6.92534023]
[1762393073715,7.26,160.91,160.89,6.92534023]
[1762393074692,7.26,160.91,160.89,6.21534023]
[1762393074896,7.26,160.91,160.89,6.92534023]
[1762393077608,7.26,160.91,160.87,6.21592489]
[1762393077609,5.56913728,160.9,160.87,6.21592489]
[1762393077805,12.82913728,160.91,160.87,6.21592489]
[1762393078117,12.82913728,160.91,160.88,0.71]
[1762393078118,7.26,160.91,160.88,0.71]
[1762393078700,7.26,160.91,160.89,6.21542668]
[1762393079422,5.56913728,160.91,160.89,6.21542668]
[1762393079608,7.26,160.9,160.89,6.21542668]
[1762393081105,5.56913728,160.91,160.89,6.21542668]
[1762393081300,7.26,160.9,160.89,6.21542668]
[1762393081931,13.48913728,160.9,160.87,6.21582833]
[1762393082116,12.82913728,160.9,160.87,6.92582833]
[1762393082316,7.26,160.9,160.87,6.92582833]
[1762393083426,0.66,160.94,160.89,5.56913728]